bitfinex-derivatives/quotes_ETHF0:USTF0_20241022
["timestamp","ask_amount","ask_price","bid_price","bid_amount"]
[1729566434423,1.74871,2641.4,2641.3,4.16432]
[1729566434727,1.37,2641.4,2641.3,5.53432]
[1729566435122,1.37,2641.4,2641.3,3.7856]
[1729566435327,1.37,2641.4,2640.7,42.76892325]
[1729566435328,1.37,2641.4,2640.7,41.79354533]
[1729566435518,1.37,2640.9,2640.8,1.74879]
[1729566435720,0.37872,2641.4,2640.8,1.37]
[1729566435923,1.37,2641.3,2641.1,1.74874]
[1729566436326,0.37871,2641.5,2641.2,1.74873]
[1729566436628,1.37,2641.4,2641.3,1.74872]
[1729566436825,1.37,2641.4,2641.3,1.37]
[1729566437033,1.37,2641.4,2641.2,0.37873]
[1729566437633,1.37,2641.4,2641.3,0.37873]
[1729566438634,1.37,2641.4,2641.3,1.74873]
[1729566442828,1.37,2641.4,2640.9,3.2078]
[1729566443030,1.37,2641.3,2641.2,1.74874]
[1729566443632,1.37,2641.3,2641.2,5.53514]
[1729566445131,1.74871,2641.4,2641.2,5.53514]
[1729566445333,1.74871,2641.4,2641.2,1.74874]
[1729566449338,0.37873,2641.3,2641.2,1.37]
[1729566449737,0.37875,2641.2,2641.0,0.37876]
[1729566450044,1.74875,2641.2,2641.0,1.74876]
[1729566450339,1.74875,2641.2,2641.0,5.53516]
[1729566451042,1.74875,2641.2,2641.0,0.37877]
[1729566451043,1.37,2641.1,2641.0,0.37877]
[1729566451243,1.37,2641.1,2641.0,5.53517]
[1729566451638,0.37875,2641.2,2641.0,5.53516]
[1729566451838,1.74875,2641.2,2641.1,1.37]
[1729566452138,1.74875,2641.2,2641.0,1.74876]
[1729566455837,0.37875,2641.2,2641.1,0.37876]
[1729566456037,1.74875,2641.2,2641.1,0.37876]
[1729566457846,1.37,2641.2,2641.1,0.37876]
[1729566460245,1.37,2641.2,2641.1,1.74876]
[1729566460645,1.37,2641.2,2641.1,2.74230533]
[1729566461251,1.37,2641.2,2641.1,1.74876]
[1729566461451,1.74874,2641.2,2641.1,0.37876]
[1729566462349,1.37,2641.2,2641.1,0.37876]
[1729566462543,1.74875,2641.2,2641.0,2.74230533]
[1729566462749,1.74875,2641.2,2641.1,0.37876]
[1729566463757,1.37,2641.2,2641.0,2.74231533]
[1729566463956,1.74875,2641.2,2641.0,2.74231533]
[1729566464157,1.37,2641.1,2641.0,1.37231533]
[1729566466357,1.37,2641.1,2641.0,3.07572711]
[1729566466558,1.37,2641.1,2641.0,1.37231533]
[1729566466862,1.37,2641.2,2641.0,2.36354533]
[1729566467059,1.37,2641.2,2641.1,0.37875]
[1729566467256,1.37,2641.2,2641.1,1.37229533]
[1729566468356,1.74874,2641.2,2641.1,0.99354533]
[1729566468864,4.5778,2641.5,2641.1,2.36354533]
[1729566468865,3.2078,2641.5,2641.1,2.36354533]
[1729566469064,1.37,2641.2,2641.1,1.37229533]
[1729566469253,0.37871,2641.4,2641.1,2.69687249]
[1729566469457,1.74873,2641.3,2641.2,1.37228533]
[1729566469661,1.37,2641.3,2641.2,1.37228533]
[1729566469965,1.37,2641.3,2641.2,0.37874]
[1729566471668,1.37,2641.3,2641.2,1.37228533]
[1729566472761,1.37,2641.3,2641.2,3.07558448]
[1729566473670,1.37,2641.3,2641.2,1.37228533]
[1729566474166,0.37868,2641.7,2641.5,0.37869]
[1729566474371,1.37,2641.6,2641.5,2.36334507]
[1729566474669,1.37,2641.6,2641.5,0.3787]
[1729566475264,1.74869,2641.6,2641.4,2.74205507]
[1729566475466,1.37,2641.5,2641.4,1.37205507]
[1729566479168,1.37,2641.5,2641.4,3.0755947]
[1729566479567,1.37,2641.5,2641.4,2.6968847]
[1729566479773,1.7487,2641.5,2641.4,0.99334507]
[1729566479967,1.7487,2641.5,2641.3,0.37872]
[1729566480166,1.37,2641.4,2641.3,0.37872]
[1729566480367,0.37874,2641.3,2641.1,4.57989507]
[1729566480671,0.37874,2641.3,2641.1,3.58655]
[1729566480672,1.37,2641.2,2641.1,3.58655]
[1729566481273,1.74874,2641.2,2641.1,3.2078]
[1729566482366,1.37,2641.2,2641.1,3.58656]
[1729566483680,1.37,2641.3,2641.2,0.37873]
[1729566484376,3.2078,2641.7,2641.2,5.1564]
[1729566484572,1.37,2641.6,2641.5,0.3787]
[1729566484777,1.37,2641.6,2641.4,0.3787]
[1729566484778,1.74869,2641.6,2641.4,0.3787]
[1729566484971,1.37,2641.5,2641.3,2.36334507]
[1729566485176,1.37,2641.5,2641.4,0.37871]
[1729566486969,1.37,2641.5,2641.4,2.0821148]
[1729566487174,1.37,2641.5,2641.4,3.0755093]
[1729566488975,1.37,2641.5,2641.4,2.0821148]
[1729566489576,1.37,2641.5,2641.4,3.07534522]
[1729566489885,1.7487,2641.5,2641.4,2.69663522]
[1729566490183,1.7487,2641.5,2641.4,1.37194042]
[1729566490184,1.37,2641.5,2641.4,1.37194042]
[1729566491781,1.37,2641.5,2641.4,4.92820192]
[1729566492178,1.37,2641.5,2641.4,4.44492227]
[1729566492484,1.37,2641.5,2641.4,4.44487848]
[1729566493482,1.37,2641.5,2641.4,2.74185223]
[1729566493683,1.37,2641.5,2641.4,4.44471309]
[1729566494286,1.37,2641.5,2641.4,4.44465368]
[1729566494479,1.37,2641.5,2641.4,2.74185223]
[1729566494681,1.37,2641.5,2641.4,4.44461938]
[1729566494875,1.37,2641.5,2641.4,3.45147715]
[1729566495087,1.37,2641.5,2641.4,1.74871]
[1729566495883,0.37866,2641.8,2641.6,0.37868]
[1729566496082,1.37,2641.8,2641.7,0.37867]
[1729566496687,1.37,2641.8,2641.7,41.17867]
[1729566498485,1.37,2641.8,2641.7,40.8]
[1729566498682,1.37,2641.8,2641.7,41.17867]
[1729566500387,1.37,2641.8,2641.7,40.8]
[1729566500592,1.74866,2641.8,2641.7,40.8]
[1729566501092,0.37868,2641.7,2641.5,1.7487]
[1729566501291,0.37869,2641.6,2641.5,1.37]
[1729566501484,0.37869,2641.6,2641.5,42.17]
[1729566501679,0.37869,2641.6,2641.5,45.9556]
[1729566501989,1.37,2641.7,2641.5,47.32744223]
[1729566501990,1.74868,2641.7,2641.5,47.32744223]
[1729566502194,1.37,2641.7,2641.5,43.16314223]
[1729566502386,0.37869,2641.6,2641.5,43.16314223]
[1729566502893,0.37869,2641.6,2641.5,47.32744223]
[1729566503986,1.37,2641.7,2641.5,46.94874223]
[1729566504193,1.74868,2641.7,2641.5,43.54183223]
[1729566504489,1.74868,2641.7,2641.5,43.16314223]
[1729566504684,1.74866,2641.8,2641.6,1.74868]
[1729566505697,1.37,2641.7,2641.6,1.74868]
[1729566507592,0.37869,2641.6,2641.5,43.54184223]
[1729566507789,1.74869,2641.6,2641.5,43.54184223]
[1729566507991,1.37,2641.6,2641.5,43.54184223]
[1729566508586,1.74869,2641.6,2641.5,43.54184223]
[1729566509393,1.37,2641.6,2641.5,43.54184223]
[1729566510094,1.37,2641.6,2641.5,42.5487]
[1729566510498,1.37,2641.7,2641.6,0.37868]
[1729566511392,1.74867,2641.7,2641.6,0.37868]
[1729566511784,1.74867,2641.7,2641.5,42.17]
[1729566512091,1.74867,2641.7,2641.6,0.37869]
[1729566512296,1.74867,2641.7,2641.5,42.54869]
[1729566512595,1.74867,2641.7,2641.6,0.37869]
[1729566513597,1.74867,2641.7,2641.5,42.54869]
[1729566513793,1.37,2641.6,2641.5,42.54869]
[1729566515598,1.37,2641.7,2641.5,42.17]
[1729566515798,1.37,2641.7,2641.6,1.74869]
[1729566516296,1.74867,2641.7,2641.6,1.74869]
[1729566517099,0.37867,2641.7,2641.6,1.74869]
[1729566517296,1.74867,2641.7,2641.6,1.74869]
[1729566517491,1.74867,2641.7,2641.6,2.74183223]
[1729566517697,1.74867,2641.7,2641.6,1.74869]
[1729566518095,1.74867,2641.7,2641.6,2.74183223]
[1729566518295,1.37,2641.7,2641.6,2.74183223]
[1729566521505,1.74867,2641.7,2641.5,42.17183223]
[1729566521900,1.37,2641.7,2641.5,42.17183223]
[1729566522098,0.37869,2641.6,2641.5,42.17183223]
[1729566522498,1.74868,2641.7,2641.5,41.79314223]
[1729566522804,1.74868,2641.7,2641.6,0.99314223]
[1729566523503,1.74868,2641.7,2641.5,42.17183223]
[1729566525403,0.37868,2641.7,2641.6,0.99314223]
[1729566525701,0.37868,2641.7,2641.6,1.70308736]
[1729566525702,1.74868,2641.7,2641.6,1.70308736]
[1729566526005,1.74868,2641.7,2641.6,3.17955303]
[1729566527301,1.74868,2641.7,2641.6,3.55824303]
[1729566529707,1.74868,2641.7,2641.6,3.55897533]
[1729566531303,1.37,2641.7,2641.6,3.55897533]
[1729566532304,1.37,2641.7,2641.6,1.37246075]
[1729566532509,1.74867,2641.8,2641.6,1.37246075]
[1729566533510,1.74867,2641.8,2641.7,0.37867]
[1729566533905,3.2078,2642.1,2641.7,1.37]
[1729566533906,0.37863,2642.0,2641.7,1.37]
[1729566534108,1.74863,2642.0,2641.8,0.37865]
[1729566534308,1.37,2641.9,2641.8,0.37865]
[1729566537316,0.37863,2642.0,2641.9,0.37864]
[1729566537505,1.74863,2642.0,2641.9,0.37864]
[1729566538008,1.74863,2642.0,2641.8,1.37]
[1729566538209,1.74863,2642.0,2641.8,1.74865]
[1729566538610,1.37,2642.0,2641.9,1.74864]
[1729566538816,3.2078,2642.1,2641.9,1.74863]
[1729566538817,3.58642,2642.1,2641.9,1.74863]
[1729566539114,1.37,2642.0,2641.9,1.74863]
[1729566539615,1.74863,2642.0,2641.8,1.74865]
[1729566539817,1.37,2641.9,2641.8,1.74866]
[1729566540316,1.37,2641.9,2641.8,4.92927564]
[1729566540910,1.74864,2641.9,2641.8,3.18061564]
[1729566541115,1.74864,2641.9,2641.8,1.70414997]
[1729566541418,1.37,2641.9,2641.8,2.08280997]
[1729566542014,1.37,2641.9,2641.8,4.92927564]
[1729566542816,3.2078,2642.1,2641.8,4.55061564]
[1729566543016,0.37863,2642.0,2641.9,1.37238525]
[1729566543320,1.74863,2642.0,2641.9,1.37238525]
[1729566543811,1.74863,2642.0,2641.9,0.99375525]
[1729566544417,1.74863,2642.0,2641.8,2.74240525]
[1729566545716,1.74863,2642.0,2641.9,0.99375525]
[1729566546313,1.74863,2642.0,2641.8,2.74240525]
[1729566547118,1.74863,2642.0,2641.8,1.74865]
[1729566547620,1.74863,2642.0,2641.7,0.99375525]
[1729566547621,1.37,2642.0,2641.9,1.37]
[1729566547819,1.37,2642.0,2641.9,1.74864]
[1729566548019,1.37,2642.0,2641.9,0.37864]
[1729566548218,1.74863,2642.0,2641.8,1.74865]
[1729566548419,1.37,2641.9,2641.8,1.74865]
[1729566549122,1.74863,2642.0,2641.8,1.74865]
[1729566549321,1.74864,2641.9,2641.8,1.37]
[1729566549619,1.37,2641.9,2641.8,1.74866]
[1729566551117,1.74865,2641.9,2641.7,1.74866]
[1729566551324,1.37,2641.8,2641.7,1.74866]
[1729566551827,1.37,2641.9,2641.8,0.37865]
[1729566552014,1.37,2641.9,2641.8,1.74865]
[1729566553816,1.74864,2641.9,2641.8,0.37865]
[1729566554330,1.37,2641.9,2641.8,0.37865]
[1729566555228,1.74865,2641.9,2641.8,0.99375525]
[1729566555832,1.74865,2641.9,2641.8,1.37241525]
[1729566555833,1.74864,2641.9,2641.8,1.37241525]
[1729566557220,1.74864,2641.9,2641.8,0.99375525]
[1729566558040,1.74864,2641.9,2641.8,1.37241525]
[1729566558332,1.74864,2641.9,2641.8,0.99375525]
[1729566559830,1.74864,2641.9,2641.8,1.37241525]
[1729566560837,1.74864,2641.9,2641.8,0.99375525]
[1729566561435,1.74864,2641.9,2641.8,2.69779753]
[1729566561936,1.74864,2641.9,2641.8,0.99375525]
[1729566562433,1.74864,2641.9,2641.7,1.74866]
[1729566562837,1.74864,2641.9,2641.7,2.74241525]
[1729566563139,1.74864,2641.9,2641.7,1.74866]
[1729566563339,1.74864,2641.9,2641.7,2.74241525]
[1729566563533,1.74864,2641.9,2641.7,1.74866]
[1729566564333,1.74864,2641.9,2641.8,0.37866]
[1729566565133,1.74864,2641.9,2641.7,1.74866]
[1729566565334,1.74864,2641.9,2641.7,2.74241525]
[1729566565630,3.2078,2642.2,2641.6,0.99375525]
[1729566565631,0.37867,2641.7,2641.6,0.99375525]
[1729566565835,0.37871,2641.4,2641.3,0.99375525]
[1729566566138,0.37871,2641.4,2641.2,1.85520567]
[1729566566139,0.37873,2641.3,2641.2,0.99375525]
[1729566566339,0.37873,2641.3,2641.2,40.8]
[1729566566340,1.74873,2641.3,2641.2,40.8]
[1729566566939,0.37877,2641.1,2640.8,5.95034525]
[1729566567244,4.5778,2641.5,2640.8,5.57155525]
[1729566567245,1.37,2640.9,2640.8,5.57155525]
[1729566567437,1.37,2640.9,2640.8,44.0078]
[1729566567630,1.37,2640.9,2640.8,45.3778]
[1729566567838,1.37,2640.9,2640.8,45.7566]
[1729566568241,1.37,2640.9,2640.8,45.3778]
[1729566569134,1.37,2640.9,2640.8,45.7566]
[1729566569440,1.37,2640.9,2640.8,44.3866]
[1729566569743,1.37,2640.9,2640.8,44.0078]
[1729566569931,1.74879,2640.9,2640.8,44.0078]
[1729566571837,5.53519,2640.9,2640.8,44.0078]
[1729566573748,1.37,2640.9,2640.8,45.7566]
[1729566573950,5.39657,2641.5,2640.8,45.7566]
[1729566574148,1.37,2640.9,2640.8,45.7566]
[1729566574650,1.37,2640.9,2640.8,42.5488]
[1729566575138,1.74879,2640.9,2640.8,40.8]
[1729566580943,1.37,2640.9,2640.8,41.1788]
[1729566586447,1.37,2640.9,2640.8,42.5488]
[1729566586655,1.37,2640.9,2640.8,40.8]
[1729566586854,1.74879,2640.9,2640.8,40.8]
[1729566587355,1.37,2640.9,2640.8,42.5488]
[1729566588555,1.74879,2640.9,2640.8,42.17]
[1729566588961,1.74879,2640.9,2640.8,42.5488]
[1729566589661,1.74879,2640.9,2640.8,42.17]
[1729566589857,1.74879,2640.9,2640.8,42.5488]
[1729566592463,1.37,2640.9,2640.8,42.5488]
[1729566600361,3.2078,2641.4,2640.8,42.17]
[1729566600658,1.37,2641.1,2641.0,0.37877]
[1729566600860,1.37,2641.1,2640.9,1.37]
[1729566600861,1.74877,2641.1,2640.9,0.37878]
[1729566601062,1.37,2641.0,2640.9,0.37878]
[1729566602661,1.37,2641.0,2640.9,1.74878]
[1729566604167,1.37,2641.1,2641.0,0.37877]
[1729566604361,1.74874,2641.3,2641.1,0.37874]
[1729566604573,1.74874,2641.3,2641.2,1.37]
[1729566605566,1.74874,2641.3,2641.1,0.37874]
[1729566605567,1.74874,2641.3,2641.1,1.74874]
[1729566605875,1.37,2641.2,2641.1,1.74874]
[1729566608671,1.74874,2641.3,2641.1,1.74874]
[1729566609174,1.37,2641.2,2641.1,0.37874]
[1729566609373,1.37,2641.2,2640.9,2.36375525]
[1729566609578,1.37,2641.2,2641.0,0.37877]
[1729566609579,1.37,2641.1,2641.0,0.37877]
[1729566611381,1.37,2641.1,2641.0,1.37252525]
[1729566612970,1.74876,2641.1,2641.0,0.99375525]
[1729566613373,1.37,2641.1,2641.0,1.37252525]
[1729566614676,1.74876,2641.1,2641.0,0.99375525]
[1729566614872,1.37,2641.1,2640.8,41.79375525]
[1729566615069,1.74879,2640.9,2640.8,41.79375525]
[1729566615282,1.74879,2640.9,2640.8,40.8]
[1729566615782,1.74879,2640.9,2640.8,41.79375525]
[1729566616680,1.74879,2640.9,2640.8,40.8]
[1729566616882,1.74879,2640.9,2640.8,41.79375525]
[1729566617883,0.37882,2640.7,2640.6,0.99375525]
[1729566618076,3.11882,2640.7,2640.6,0.99375525]
[1729566618275,3.11882,2640.7,2640.5,45.00155525]
[1729566618276,0.37883,2640.6,2640.5,45.00155525]
[1729566618476,1.37,2640.6,2640.5,45.00155525]
[1729566618981,1.37,2640.6,2640.5,44.0078]
[1729566619483,1.37,2640.6,2640.5,45.75664]
[1729566619682,1.37,2640.6,2640.5,45.3778]
[1729566620272,1.37,2640.6,2640.5,45.75664]
[1729566622074,1.37,2640.6,2640.5,42.54884]
[1729566622883,1.37,2640.6,2640.5,42.17]
[1729566623482,1.37,2640.6,2640.5,42.54884]
[1729566629979,1.74883,2640.6,2640.5,40.8]
[1729566631378,1.74883,2640.6,2640.4,3.58665]
[1729566631575,1.37,2640.5,2640.4,3.58665]
[1729566632883,1.37,2640.5,2640.4,4.95665]
[1729566633188,0.37882,2640.7,2640.5,0.37884]
[1729566633393,1.37,2640.6,2640.5,0.37884]
[1729566633889,0.37882,2640.7,2640.5,1.74884]
[1729566634092,1.37,2640.6,2640.5,1.74884]
[1729566637791,1.37,2640.6,2640.4,1.37]
[1729566638091,1.37,2640.5,2640.4,1.74885]
[1729566639993,1.37,2640.5,2640.4,1.74886]
[1729566646894,1.37,2640.6,2640.5,0.37884]
[1729566647093,1.37,2640.6,2640.5,1.74884]
[1729566647289,0.3788,2640.8,2640.7,0.37881]
[1729566647496,0.37878,2641.0,2640.8,0.37879]
[1729566647991,1.37,2640.9,2640.8,0.37879]
[1729566648592,1.74879,2640.9,2640.7,1.74881]
[1729566648905,1.37,2640.8,2640.7,0.37881]
[1729566650004,1.74881,2640.8,2640.6,0.37882]
[1729566650203,1.37,2640.7,2640.6,0.37882]
[1729566650701,1.37,2640.7,2640.6,1.74882]
[1729566652089,3.50505819,2641.2,2640.6,1.37]
[1729566652289,0.37876,2641.1,2640.7,0.3788]
[1729566652497,3.50505819,2641.2,2640.7,0.3788]
[1729566652498,1.37,2640.8,2640.7,0.3788]
[1729566654804,1.37,2640.8,2640.7,1.74882]
[1729566655906,1.37,2640.9,2640.8,0.3788]
[1729566656097,1.74879,2640.9,2640.7,1.74881]
[1729566656793,1.74879,2640.9,2640.7,1.37]
[1729566656989,1.37,2640.9,2640.8,0.3788]
[1729566657298,1.37,2640.9,2640.7,1.74881]
[1729566657299,1.74879,2640.9,2640.7,1.74881]
[1729566657698,1.37,2640.9,2640.8,0.3788]
[1729566658003,1.74879,2640.9,2640.8,0.3788]
[1729566658206,1.74879,2640.9,2640.7,2.36375525]
[1729566658503,1.74879,2640.9,2640.7,2.74256525]
[1729566660099,1.74879,2640.9,2640.8,0.99375525]
[1729566662007,1.37,2640.9,2640.8,0.99375525]
[1729566662202,1.37,2640.9,2640.8,4.45401401]
[1729566662396,1.37,2640.9,2640.8,2.74255525]
[1729566662602,1.37,2640.9,2640.8,2.36375525]
[1729566662898,1.37,2640.9,2640.8,0.99375525]
[1729566663213,1.37,2640.9,2640.8,2.74255525]
[1729566663394,1.37,2640.9,2640.8,2.36375525]
[1729566663599,1.74879,2640.9,2640.8,2.36375525]
[1729566663901,1.37,2640.9,2640.8,2.36375525]
[1729566664107,1.74879,2640.9,2640.8,2.36375525]
[1729566664300,1.37,2640.9,2640.8,2.36375525]
[1729566664506,1.37,2640.9,2640.8,2.74255525]
[1729566664903,1.74879,2640.9,2640.8,2.36375525]
[1729566665210,0.37876,2641.1,2640.9,0.37878]
[1729566665507,1.37,2641.0,2640.9,1.37218348]
[1729566665908,1.37,2641.0,2640.9,2.74218348]
[1729566666509,3.58655,2641.2,2641.0,0.37876]
[1729566666709,1.37,2641.1,2641.0,0.37876]
[1729566666909,1.37,2641.1,2640.9,2.36340348]
[1729566667109,1.74876,2641.1,2640.9,2.74218348]
[1729566667308,3.2078,2641.2,2641.0,1.37]
[1729566667508,4.5778,2641.2,2641.1,2.74216348]
[1729566667813,4.5778,2641.2,2641.1,4.45270409]
[1729566668414,4.5778,2641.2,2641.1,2.74216348]
[1729566669311,1.37,2641.3,2641.2,0.37874]
[1729566669512,2.31649,2642.3,2641.2,0.37874]
[1729566669513,0.37867,2641.8,2641.2,7.76391795]
[1729566669820,1.37,2641.7,2641.6,1.37]
[1729566670015,1.37,2642.0,2641.6,43.16246047]
[1729566670206,0.37862,2642.1,2641.9,1.74864]
[1729566670407,3.2078,2642.2,2642.0,1.37]
[1729566670607,1.37,2642.1,2641.9,1.74864]
[1729566670810,1.37,2642.0,2641.9,1.74864]
[1729566672115,1.37,2642.0,2641.8,1.37]
[1729566672417,1.37,2641.9,2641.8,1.74866]
[1729566673417,3.58641,2642.2,2642.0,0.37863]
[1729566673418,1.37,2642.1,2642.0,0.37863]
[1729566673616,1.37,2642.1,2642.0,1.74863]
[1729566674112,1.37,2642.1,2641.9,1.74864]
[1729566674316,1.37,2642.0,2641.9,0.37864]
[1729566674511,1.37,2642.0,2641.8,1.74865]
[1729566674512,1.74863,2642.0,2641.8,1.74865]
[1729566674715,1.37,2641.9,2641.8,1.74865]
[1729566674918,3.2078,2642.2,2642.1,0.37861]
[1729566675120,3.2078,2642.6,2642.5,0.37856]
[1729566675325,3.2078,2642.6,2642.5,1.74856]
[1729566676217,4.5778,2642.6,2642.5,1.74856]
[1729566676915,4.5778,2642.6,2642.5,42.54856]
[1729566677112,3.2078,2642.6,2642.5,42.54856]
[1729566677321,3.58629,2643.0,2642.5,45.954]
[1729566677532,1.37,2642.9,2642.8,0.37851]
[1729566677724,3.58629,2643.0,2642.7,0.37852]
[1729566678820,3.58629,2643.0,2642.8,1.37]
[1729566679123,3.58629,2643.0,2642.9,1.37]
[1729566679124,4.5778,2643.0,2642.9,1.37]
[1729566679325,3.2078,2643.0,2642.9,1.37]
[1729566680331,4.95629,2643.0,2642.9,1.37]
[1729566680927,0.37852,2642.8,2642.6,1.37]
[1729566681133,1.37,2642.7,2642.6,1.37]
[1729566682633,1.74853,2642.7,2642.6,1.37]
[1729566682819,1.74853,2642.7,2642.5,1.37]
[1729566682820,0.37855,2642.6,2642.5,1.37]
[1729566683020,1.74855,2642.6,2642.4,1.37]
[1729566683225,1.37,2642.6,2642.5,1.37]
[1729566683831,1.74854,2642.6,2642.5,1.37]
[1729566686930,5.154,2642.6,2642.4,1.37]
[1729566687129,0.30727954,2642.9,2642.4,1.37]
[1729566687130,1.74857,2642.5,2642.4,1.37]
[1729566687329,1.74857,2642.5,2642.3,42.17]
[1729566687932,1.37,2642.5,2642.4,1.37]
[1729566688133,1.74856,2642.5,2642.4,1.37]
[1729566689427,0.37857,2642.4,2642.3,40.8]
[1729566689627,0.37857,2642.4,2642.3,42.17]
[1729566689828,1.74857,2642.4,2642.3,42.17]
[1729566696755,0.37857,2642.4,2642.3,42.17]
[1729566699947,1.74857,2642.4,2642.3,42.17]
[1729566705954,0.37857,2642.4,2642.3,42.17]
[1729566707250,3.58635,2642.6,2642.4,0.37857]
[1729566707449,3.58635,2642.6,2642.4,1.74857]
[1729566707850,3.2078,2642.6,2642.5,1.74856]
[1729566708149,4.5778,2643.0,2642.8,0.37851]
[1729566708456,4.5778,2643.0,2642.9,1.7485]
[1729566708664,3.2078,2643.0,2642.9,1.7485]
[1729566709056,4.5778,2643.0,2642.9,1.37]
[1729566710060,4.5778,2643.0,2642.8,1.37]
[1729566710266,1.37,2642.9,2642.8,1.74851]
[1729566710557,0.37,2642.9,2642.8,1.74851]
[1729566710859,4.5778,2643.0,2642.8,1.74851]
[1729566711457,4.9563,2643.0,2642.8,1.37]
[1729566711657,1.37,2642.9,2642.8,1.37]
[1729566712561,1.37,2642.9,2642.8,1.74851]
[1729566713365,4.9563,2643.0,2642.8,1.74851]
[1729566713663,4.9563,2643.0,2642.8,1.37]
[1729566713862,4.9563,2643.0,2642.8,1.74851]
[1729566714062,3.5863,2643.0,2642.9,1.37]
[1729566714258,0.3785,2642.9,2642.8,1.37]
[1729566714452,4.5778,2643.0,2642.8,1.37]
[1729566714658,1.37,2642.9,2642.8,1.74851]
[1729566715462,3.2078,2643.0,2642.9,0.3785]
[1729566715764,3.2078,2643.0,2642.9,1.7485]
[1729566716163,3.2078,2643.0,2642.9,5.5325]
[1729566720463,0.37851,2642.9,2642.8,1.37]
[1729566720670,1.74851,2642.9,2642.8,1.37]
[1729566721964,1.74851,2642.9,2642.8,1.74851]
[1729566722467,1.37,2642.9,2642.8,1.74851]
[1729566722667,3.58629,2643.0,2642.8,1.74851]
[1729566722870,3.58629,2643.0,2642.9,1.37]
[1729566723367,0.3785,2642.9,2642.8,1.37]
[1729566724167,4.95629,2643.0,2642.8,1.7485]
[1729566724367,1.37,2642.9,2642.8,1.37]
[1729566724571,0.37851,2642.8,2642.7,1.74853]
[1729566724769,0.37851,2642.8,2642.7,1.37]
[1729566725069,4.95629,2643.0,2642.8,0.37851]
[1729566725270,4.95629,2643.0,2642.8,1.74851]
[1729566725873,0.37846,2643.2,2643.0,0.37848]
[1729566726065,1.74847,2643.2,2643.1,1.37]
[1729566726871,0.37847,2643.1,2642.9,1.74849]
[1729566727065,1.37,2643.0,2642.9,1.74849]
[1729566729670,1.74846,2643.2,2642.9,1.37]
[1729566729972,1.74847,2643.2,2643.0,1.37]
[1729566730573,1.74847,2643.2,2643.0,1.74848]
[1729566731671,1.74847,2643.2,2643.0,1.37]
[1729566731867,1.37,2643.2,2643.0,1.37]
[1729566732071,0.37847,2643.1,2643.0,1.37]
[1729566732269,0.37847,2643.1,2642.9,1.7485]
[1729566733171,1.74846,2643.2,2643.0,1.74848]
[1729566733481,0.37846,2643.2,2643.0,1.74848]
[1729566733682,0.37846,2643.2,2643.1,1.37]
[1729566733977,1.37,2643.3,2643.1,1.37]
[1729566733978,0.37845,2643.3,2643.1,1.37]
[1729566734276,1.74845,2643.3,2643.2,1.37]
[1729566734477,1.74845,2643.3,2643.1,1.37]
[1729566734783,1.74845,2643.3,2643.1,1.74846]
[1729566735079,1.74845,2643.3,2643.1,1.37]
[1729566735777,0.37846,2643.2,2643.1,1.37]
[1729566736173,0.37846,2643.2,2643.0,1.74848]
[1729566736174,1.74846,2643.2,2643.0,1.74848]
[1729566737375,1.74846,2643.2,2643.1,1.37]
[1729566737676,1.37,2643.2,2643.1,1.37]
[1729566737879,1.74846,2643.2,2643.1,1.37]
[1729566738786,5.53167,2643.2,2643.0,1.37]
[1729566739080,1.74847,2643.2,2643.1,1.37]
[1729566741483,5.1532,2643.2,2643.0,1.37]
[1729566741677,1.74848,2643.1,2643.0,1.37]
[1729566743383,0.37849,2643.0,2642.9,1.37]
[1729566745482,0.37848,2643.1,2642.9,1.37]
[1729566745681,0.37846,2643.2,2643.0,1.74849]
[1729566745880,0.37846,2643.2,2643.1,1.37]
[1729566747985,1.74846,2643.2,2643.1,1.37]
[1729566749188,5.53166,2643.2,2643.1,1.37]
[1729566749984,0.37847,2643.1,2642.9,0.37849]
[1729566750182,0.37847,2643.1,2643.0,1.37]
[1729566751684,1.74847,2643.1,2643.0,1.37]
[1729566752483,0.3785,2643.0,2642.9,1.37]
[1729566753089,3.5863,2643.0,2642.9,1.37]
[1729566753888,0.3785,2643.0,2642.9,1.37]
[1729566757692,1.37,2643.2,2642.9,2.35664353]
[1729566757988,1.37,2643.2,2643.1,1.37]
[1729566757989,0.37846,2643.2,2643.1,1.37]
[1729566758790,1.74846,2643.2,2643.1,1.37]
[1729566759591,1.74846,2643.2,2643.0,1.37]
[1729566761188,0.37846,2643.2,2643.0,1.74848]
[1729566761386,0.37846,2643.2,2643.1,1.37]
[1729566761691,1.37,2643.1,2643.0,1.37]
[1729566767893,1.74847,2643.1,2643.0,1.37]
[1729566769090,3.2078,2643.3,2643.0,1.37]
[1729566769299,0.37846,2643.2,2643.0,1.74848]
[1729566770595,0.37847,2643.1,2643.0,1.37]
[1729566772000,0.37847,2643.1,2643.0,1.74849]
[1729566772300,0.37846,2643.2,2643.1,0.37846]
[1729566772497,0.37846,2643.2,2643.1,2.74205786]
[1729566773102,3.2078,2643.3,2643.1,2.74205786]
[1729566773291,3.58625,2643.3,2643.2,42.17]